[Event "European Womens-ch 2025"]
[Site "Rhodes"]
[Date "2025.04.08"]
[Round "8.30"]
[White "Yildiz, Elif Zeren"]
[Black "Fataliyeva, Ulviyya"]
[Result "1/2-1/2"]
[Annotator "RC"]
[ECO "B10"]
[WhiteElo "2160"]
[BlackElo "2387"]
[PlyCount "88"]
[EventDate "2025.03.29"]
[EventType "swiss"]
[EventCountry "GRE"]
[SourceTitle "playchess.com"]
[Source "ChessBase"]
[SourceQuality "1"]
[TimeControl "40/5400+30:1800+30"]

1. e4 {[%emt 0:00:02]} c6 {[%emt 0:01:38]} 2. Nf3 {[%emt 0:00:15]} d5 {[%emt 0:00:05]} 3. d3 {[%emt 0:00:04]} Qc7 {[%emt 0:00:05]} 4. g3 {[%emt 0:03:01]} dxe4 {[%emt 0:03:17]} 5. dxe4 {[%emt 0:00:06]} e5 {[%emt 0:00:11]} 6. Bg2 {[%emt 0:00:23]} Nf6 {[%emt 0:00:14]} 7. Nbd2 {[%emt 0:02:58]} Bc5 {[%emt 0:00:40]} 8. O-O {[%emt 0:02:13]} O-O {[%emt 0:00:05]} 9. Qe2 {[%emt 0:06:08]} a5 {[%emt 0:00:42]} 10. h3 {[%emt 0:04:16]} Nbd7 {[%emt 0:02:14]} 11. Rd1 {[%emt 0:02:02]} b5 {[%emt 0:01:35]} 12. Nf1 {[%emt 0:04:48]} b4 {[%emt 0:02:13]} 13. Nh4 {[%emt 0:03:52]} Re8 {[%emt 0:00:30]} 14. Be3 {[%emt 0:02:53]} a4 {[%emt 0:02:20]} 15. Nf5 {[%emt 0:04:48]} Ba6 {[%emt 0:02:20]} 16. Qe1 {[%emt 0:04:58]} Rab8 {[%emt 0:02:43]} 17. g4 {[%emt 0:04:40]} Bxe3 {[%emt 0:12:16]} 18. Qxe3 {[%emt 0:00:04]} Nf8 {[%emt 0:00:11]} 19. N1g3 {[%emt 0:05:55]} Ne6 {[%emt 0:00:37]} 20. g5 {[%emt 0:04:19]} Nd7 {[%emt 0:00:17]} 21. h4 {[%emt 0:09:31]} Nf4 {[%emt 0:02:34]} 22. Bf3 {[%emt 0:01:18]} Nf8 {[%emt 0:01:15]} 23. Rd2 {[%emt 0:07:52]} c5 {[%emt 0:01:33]} 24. Rad1 {[%emt 0:00:34]} c4 {[%emt 0:03:38]} 25. Nh5 {[%emt 0:05:21]} Nxh5 {[%emt 0:04:32]} 26. Bxh5 {[%emt 0:00:02]} Bc8 {[%emt 0:04:52]} 27. Nd6 {[%emt 0:04:48]} Re7 {[%emt 0:00:06]} 28. Nf5 {[%emt 0:00:03]} Rd7 {[%emt 0:05:33]} 29. Rxd7 {[%emt 0:00:45]} Bxd7 {[%emt 0:00:21]} 30. Ne7+ {[%emt 0:02:21]} Kh8 {[%emt 0:00:01]} 31. Nd5 {[%emt 0:00:26]} Qb7 {[%emt 0:02:35]} 32. Qg3 {[%emt 0:02:22]} Ng6 {[%emt 0:03:45]} 33. Bxg6 {[%emt 0:05:13]} hxg6 {[%emt 0:02:19]} 34. Qxe5 {[%emt 0:00:29]} Re8 {[%emt 0:00:26]} 35. Qf4 {[%emt 0:00:19]} Bc6 {[%emt 0:00:42]} 36. f3 {[%emt 0:02:19]} b3 {[%emt 0:00:36]} 37. cxb3 {[%emt 0:03:54]} axb3 {[%emt 0:00:16]} 38. axb3 {[%emt 0:00:05]} Qxb3 {[%emt 0:00:31]} 39. Ne3 {[%emt 0:01:42]} Kg8 {[%emt 0:01:34]} 40. Rd2 {[%emt 0:00:00]} Ra8 {[%emt 0:00:00]} 41. Kf2 {[%emt 0:06:34]} Ra2 {[%emt 0:06:53]} 42. Qd6 {[%emt 0:07:15]} Rxb2 {[%emt 0:04:32]} 43. Nxc4 {[%emt 0:00:20]} Rxd2+ {[%emt 0:00:32]} 44. Nxd2 {[%emt 0:00:01]} Qb6+ {[%emt 0:00:12]} 1/2-1/2

[Event "European Womens-ch 2025"]
[Site "Rhodes"]
[Date "2025.04.08"]
[Round "8.31"]
[White "Pavlidou, Ekaterini"]
[Black "Atalik, Ekaterina"]
[Result "0-1"]
[Annotator "RC"]
[ECO "D10"]
[WhiteElo "2160"]
[BlackElo "2375"]
[PlyCount "122"]
[EventDate "2025.03.29"]
[EventType "swiss"]
[EventCountry "GRE"]
[SourceTitle "playchess.com"]
[Source "ChessBase"]
[SourceQuality "1"]
[TimeControl "40/5400+30:1800+30"]

1. d4 {[%emt 0:02:18]} d5 {[%emt 0:00:06]} 2. c4 {[%emt 0:00:14]} c6 {[%emt 0:00:05]} 3. cxd5 {[%emt 0:00:46]} cxd5 {[%emt 0:00:06]} 4. Bf4 {[%emt 0:00:09]} Nc6 {[%emt 0:00:22]} 5. e3 {[%emt 0:00:59]} Nf6 {[%emt 0:00:39]} 6. Nc3 {[%emt 0:00:09]} a6 {[%emt 0:00:08]} 7. Bd3 {[%emt 0:01:16]} Bg4 {[%emt 0:00:16]} 8. f3 {[%emt 0:01:52]} Bh5 {[%emt 0:00:06]} 9. g4 {[%emt 0:04:42]} Bg6 {[%emt 0:00:04]} 10. h4 {[%emt 0:01:31]} Bxd3 {[%emt 0:02:13]} 11. Qxd3 {[%emt 0:00:08]} e6 {[%emt 0:00:03]} 12. Nge2 {[%emt 0:03:13]} Nd7 {[%emt 0:03:34]} 13. Bg3 {[%emt 0:04:38]} Nb6 {[%emt 0:01:45]} 14. a3 {[%emt 0:03:11]} Bd6 {[%emt 0:03:28]} 15. Kf2 {[%emt 0:05:06]} O-O {[%emt 0:01:55]} 16. Kg2 {[%emt 0:21:40]} Rc8 {[%emt 0:01:54]} 17. Rac1 {[%emt 0:04:58]} Nc4 {[%emt 0:06:12]} 18. Rc2 {[%emt 0:02:09]} b5 {[%emt 0:03:42]} 19. Rhc1 {[%emt 0:10:54]} Bxg3 {[%emt 0:08:25]} 20. Nxg3 {[%emt 0:03:16]} Qb6 {[%emt 0:03:27]} 21. f4 {[%emt 0:08:02]} Qb7 {[%emt 0:06:36]} 22. Kh3 {[%emt 0:03:20]} Rfe8 {[%emt 0:10:01]} 23. Rf2 {[%emt 0:01:39]} Nb8 {[%emt 0:05:11]} 24. Nd1 {[%emt 0:02:33]} Nd7 {[%emt 0:01:48]} 25. g5 {[%emt 0:02:51]} Rc6 {[%emt 0:03:28]} 26. Rcc2 {[%emt 0:06:48]} Rec8 {[%emt 0:01:51]} 27. h5 {[%emt 0:01:08]} Nd6 {[%emt 0:01:04]} 28. Rxc6 {[%emt 0:00:20]} Qxc6 {[%emt 0:00:23]} 29. Nc3 {[%emt 0:01:03]} a5 {[%emt 0:06:51]} 30. Kh2 {[%emt 0:01:55]} f5 {[%emt 0:03:07]} 31. gxf6 {[%emt 0:01:18]} Nxf6 {[%emt 0:00:05]} 32. Rg2 {[%emt 0:01:12]} Qe8 {[%emt 0:05:05]} 33. Qe2 {[%emt 0:00:54]} b4 {[%emt 0:00:20]} 34. axb4 {[%emt 0:00:05]} axb4 {[%emt 0:00:04]} 35. Nd1 {[%emt 0:00:39]} Rc1 {[%emt 0:02:19]} 36. Nf2 {[%emt 0:00:51]} b3 {[%emt 0:03:58]} 37. Nd3 {[%emt 0:00:02]} Rc2 {[%emt 0:00:26]} 38. Qd1 {[%emt 0:00:57]} Nc4 {[%emt 0:01:03]} 39. Qf3 {[%emt 0:00:38]} Nxe3 {[%emt 0:02:00]} 40. Rxc2 {[%emt 0:00:00]} bxc2 {[%emt 0:00:00]} 41. Kh3 {[%emt 0:05:39]} Nf5 {[%emt 0:03:57]} 42. Qe2 {[%emt 0:06:29]} Nxg3 {[%emt 0:02:25]} 43. Kxg3 {[%emt 0:00:01]} Ne4+ {[%emt 0:04:51]} 44. Kg2 {[%emt 0:03:31]} Qc6 {[%emt 0:02:02]} 45. Nc1 {[%emt 0:00:46]} Kf7 {[%emt 0:01:03]} 46. Qf3 {[%emt 0:05:14]} Qc8 {[%emt 0:04:16]} 47. Qb3 {[%emt 0:01:46]} Nd6 {[%emt 0:03:06]} 48. Qb6 {[%emt 0:01:54]} Nf5 {[%emt 0:01:22]} 49. Qa7+ {[%emt 0:02:05]} Kf6 {[%emt 0:00:07]} 50. Qb6 {[%emt 0:00:54]} Ne3+ {[%emt 0:05:58]} 51. Kf2 {[%emt 0:02:09]} Nf5 {[%emt 0:01:18]} 52. Qb4 {[%emt 0:01:45]} Kf7 {[%emt 0:00:32]} 53. b3 {[%emt 0:02:33]} Qc7 {[%emt 0:01:04]} 54. Kf3 {[%emt 0:00:01]} Qa7 {[%emt 0:06:40]} 55. Qc3 {[%emt 0:00:07]} Nxd4+ {[%emt 0:00:11]} 56. Kg2 {[%emt 0:00:54]} Nf5 {[%emt 0:05:26]} 57. Nd3 {[%emt 0:00:02]} Qb7 {[%emt 0:00:40]} 58. Ne5+ {[%emt 0:01:11]} Kg8 {[%emt 0:00:12]} 59. Kh2 {[%emt 0:00:47]} Nd4 {[%emt 0:02:03]} 60. Qc5 {[%emt 0:01:18]} Qa6 {[%emt 0:03:30]} 61. Kg3 {[%emt 0:01:54]} c1=Q {[%emt 0:00:20]} 0-1

[Event "European Womens-ch 2025"]
[Site "Rhodes"]
[Date "2025.04.08"]
[Round "8.32"]
[White "Sliwicka, Alicja"]
[Black "Piddubna, Bozhena"]
[Result "1/2-1/2"]
[Annotator "RC"]
[ECO "C42"]
[WhiteElo "2342"]
[BlackElo "2145"]
[PlyCount "203"]
[EventDate "2025.03.29"]
[EventType "swiss"]
[EventCountry "GRE"]
[SourceTitle "playchess.com"]
[Source "ChessBase"]
[SourceQuality "1"]
[TimeControl "40/5400+30:1800+30"]

1. e4 {[%emt 0:01:10]} e5 {[%emt 0:00:27]} 2. Nf3 {[%emt 0:00:08]} Nf6 {[%emt 0:00:16]} 3. Nxe5 {[%emt 0:00:11]} d6 {[%emt 0:00:08]} 4. Nf3 {[%emt 0:00:05]} Nxe4 {[%emt 0:00:06]} 5. c4 {[%emt 0:00:05]} c6 {[%emt 0:04:21]} 6. d4 {[%emt 0:02:05]} d5 {[%emt 0:00:46]} 7. Bd3 {[%emt 0:07:27]} Bb4+ {[%emt 0:04:53]} 8. Nbd2 {[%emt 0:16:42]} Bg4 {[%emt 0:08:49]} 9. O-O {[%emt 0:02:36]} Bxd2 {[%emt 0:07:43]} 10. Bxd2 {[%emt 0:00:34]} O-O {[%emt 0:09:43]} 11. Bb4 {[%emt 0:04:58]} c5 {[%emt 0:20:38]} 12. Bxc5 {[%emt 0:06:07]} Nxc5 {[%emt 0:02:27]} 13. dxc5 {[%emt 0:00:06]} dxc4 {[%emt 0:05:07]} 14. Bxc4 {[%emt 0:01:19]} Nd7 {[%emt 0:00:33]} 15. h3 {[%emt 0:01:32]} Bxf3 {[%emt 0:04:18]} 16. Qxf3 {[%emt 0:00:07]} Nxc5 {[%emt 0:04:50]} 17. b4 {[%emt 0:01:49]} Qh4 {[%emt 0:03:31]} 18. Rac1 {[%emt 0:00:18]} Ne4 {[%emt 0:05:17]} 19. Rfd1 {[%emt 0:00:13]} Ng5 {[%emt 0:08:28]} 20. Qxb7 {[%emt 0:03:20]} Rab8 {[%emt 0:00:08]} 21. Qxa7 {[%emt 0:00:49]} Rxb4 {[%emt 0:01:22]} 22. Qc5 {[%emt 0:08:30]} Rbb8 {[%emt 0:03:47]} 23. Rd4 {[%emt 0:03:38]} Qh6 {[%emt 0:00:01]} 24. Re1 {[%emt 0:02:53]} Rbc8 {[%emt 0:03:10]} 25. Qf5 {[%emt 0:01:30]} Qb6 {[%emt 0:00:46]} 26. Rg4 {[%emt 0:01:22]} h6 {[%emt 0:00:51]} 27. h4 {[%emt 0:00:46]} Rc5 {[%emt 0:00:52]} 28. Qf4 {[%emt 0:04:12]} Nh7 {[%emt 0:00:39]} 29. Qg3 {[%emt 0:04:27]} Qb2 {[%emt 0:00:28]} 30. Kh2 {[%emt 0:02:27]} h5 {[%emt 0:00:06]} 31. Rf4 {[%emt 0:02:55]} Nf6 {[%emt 0:00:03]} 32. Qd3 {[%emt 0:02:03]} Qb8 {[%emt 0:00:58]} 33. g3 {[%emt 0:00:17]} Ng4+ {[%emt 0:00:32]} 34. Kg1 {[%emt 0:02:08]} Ne5 {[%emt 0:00:12]} 35. Qe2 {[%emt 0:00:30]} Nxc4 {[%emt 0:00:47]} 36. Rxc4 {[%emt 0:00:07]} Ra5 {[%emt 0:00:20]} 37. a4 {[%emt 0:00:55]} Qb3 {[%emt 0:01:03]} 38. Rec1 {[%emt 0:02:09]} Rxa4 {[%emt 0:00:31]} 39. R4c3 {[%emt 0:01:53]} Qd5 {[%emt 0:00:30]} 40. Rc5 {[%emt 0:00:00]} Qe4 {[%emt 0:00:00]} 41. Qxh5 {[%emt 0:00:51]} Qg4 {[%emt 0:04:46]} 42. Qd5 {[%emt 0:01:36]} Qe4 {[%emt 0:06:18]} 43. Qd7 {[%emt 0:01:49]} Rd4 {[%emt 0:00:32]} 44. Qf5 {[%emt 0:03:51]} Qxf5 {[%emt 0:03:04]} 45. Rxf5 {[%emt 0:00:06]} Rfd8 {[%emt 0:00:05]} 46. Rcc5 {[%emt 0:01:37]} g6 {[%emt 0:01:55]} 47. Rfe5 {[%emt 0:01:05]} Kg7 {[%emt 0:00:36]} 48. Kg2 {[%emt 0:00:10]} R8d7 {[%emt 0:01:06]} 49. Ra5 {[%emt 0:00:33]} R7d6 {[%emt 0:01:36]} 50. Re3 {[%emt 0:03:40]} Rd3 {[%emt 0:01:35]} 51. Rxd3 {[%emt 0:02:23]} Rxd3 {[%emt 0:00:02]} 52. g4 {[%emt 0:00:10]} Rb3 {[%emt 0:01:09]} 53. f3 {[%emt 0:00:06]} Rc3 {[%emt 0:00:30]} 54. Kg3 {[%emt 0:00:04]} Rb3 {[%emt 0:00:15]} 55. Ra4 {[%emt 0:00:40]} Rc3 {[%emt 0:01:12]} 56. g5 {[%emt 0:01:43]} Rb3 {[%emt 0:01:21]} 57. Kg4 {[%emt 0:00:04]} Rb1 {[%emt 0:01:11]} 58. Re4 {[%emt 0:01:11]} f5+ {[%emt 0:02:10]} 59. gxf6+ {[%emt 0:00:05]} Kxf6 {[%emt 0:00:03]} 60. Rf4+ {[%emt 0:01:25]} Kg7 {[%emt 0:00:08]} 61. Ra4 {[%emt 0:00:42]} Rb6 {[%emt 0:01:20]} 62. Ra5 {[%emt 0:00:56]} Kf6 {[%emt 0:00:16]} 63. Ra7 {[%emt 0:01:20]} Rb4+ {[%emt 0:00:58]} 64. Kg3 {[%emt 0:00:10]} Rb1 {[%emt 0:03:02]} 65. Ra6+ {[%emt 0:02:52]} Kf5 {[%emt 0:00:12]} 66. Ra5+ {[%emt 0:00:18]} Kf6 {[%emt 0:00:04]} 67. Ra4 {[%emt 0:00:20]} Rb6 {[%emt 0:02:52]} 68. Rg4 {[%emt 0:00:59]} Ra6 {[%emt 0:00:32]} 69. Rf4+ {[%emt 0:01:15]} Kg7 {[%emt 0:00:14]} 70. Kg4 {[%emt 0:00:24]} Ra1 {[%emt 0:00:46]} 71. Rc4 {[%emt 0:00:31]} Ra6 {[%emt 0:00:30]} 72. Rc7+ {[%emt 0:02:01]} Kf6 {[%emt 0:00:04]} 73. Rh7 {[%emt 0:00:04]} Ra4+ {[%emt 0:00:57]} 74. Kg3 {[%emt 0:00:16]} Ra5 {[%emt 0:00:43]} 75. Rh8 {[%emt 0:00:57]} Ra4 {[%emt 0:00:51]} 76. Rf8+ {[%emt 0:00:28]} Kg7 {[%emt 0:00:04]} 77. Rf4 {[%emt 0:00:28]} Ra6 {[%emt 0:00:16]} 78. Kg4 {[%emt 0:00:12]} Ra1 {[%emt 0:00:30]} 79. Rd4 {[%emt 0:00:25]} Ra6 {[%emt 0:00:10]} 80. Rd5 {[%emt 0:00:10]} Kf6 {[%emt 0:00:14]} 81. f4 {[%emt 0:00:03]} Rb6 {[%emt 0:02:15]} 82. h5 {[%emt 0:01:07]} gxh5+ {[%emt 0:00:04]} 83. Rxh5 {[%emt 0:00:03]} Rb1 {[%emt 0:00:35]} 84. Rh6+ {[%emt 0:00:05]} Kg7 {[%emt 0:00:32]} 85. Ra6 {[%emt 0:00:04]} Rb5 {[%emt 0:00:19]} 86. Re6 {[%emt 0:00:37]} Kf7 {[%emt 0:00:16]} 87. Re4 {[%emt 0:00:36]} Kf6 {[%emt 0:01:04]} 88. Rc4 {[%emt 0:00:06]} Ra5 {[%emt 0:00:30]} 89. f5 {[%emt 0:00:31]} Ra1 {[%emt 0:00:11]} 90. Rc6+ {[%emt 0:00:07]} Kf7 {[%emt 0:00:16]} 91. Rc4 {[%emt 0:01:00]} Rg1+ {[%emt 0:00:36]} 92. Kf4 {[%emt 0:00:03]} Rf1+ {[%emt 0:00:07]} 93. Ke5 {[%emt 0:00:05]} Re1+ {[%emt 0:00:06]} 94. Re4 {[%emt 0:00:03]} Rxe4+ {[%emt 0:00:19]} 95. Kxe4 {[%emt 0:00:03]} Kf6 {[%emt 0:00:04]} 96. Kf4 {[%emt 0:00:03]} Kf7 {[%emt 0:00:06]} 97. Ke5 {[%emt 0:00:02]} Ke7 {[%emt 0:00:03]} 98. f6+ {[%emt 0:00:03]} Kf7 {[%emt 0:00:03]} 99. Kf5 {[%emt 0:00:04]} Kf8 {[%emt 0:00:07]} 100. Kg6 {[%emt 0:00:04]} Kg8 {[%emt 0:00:04]} 101. f7+ {[%emt 0:00:04]} Kf8 {[%emt 0:00:02]} 102. Kf6 {[%emt 0:00:04]} 1/2-1/2

[Event "European Womens-ch 2025"]
[Site "Rhodes"]
[Date "2025.04.08"]
[Round "8.33"]
[White "Brunello, Marina"]
[Black "Zaksaite, Salomeja"]
[Result "1-0"]
[Annotator "RC"]
[ECO "C55"]
[WhiteElo "2330"]
[BlackElo "2137"]
[PlyCount "127"]
[EventDate "2025.03.29"]
[EventType "swiss"]
[EventCountry "GRE"]
[SourceTitle "playchess.com"]
[Source "ChessBase"]
[SourceQuality "1"]
[TimeControl "40/5400+30:1800+30"]

1. e4 {[%emt 0:02:39]} e5 {[%emt 0:00:21]} 2. Nf3 {[%emt 0:00:05]} Nc6 {[%emt 0:00:04]} 3. Bc4 {[%emt 0:00:12]} Nf6 {[%emt 0:00:15]} 4. d3 {[%emt 0:00:05]} h6 {[%emt 0:00:22]} 5. O-O {[%emt 0:00:54]} d6 {[%emt 0:00:20]} 6. Re1 {[%emt 0:02:07]} Na5 {[%emt 0:03:36]} 7. Nc3 {[%emt 0:00:14]} Nxc4 {[%emt 0:00:54]} 8. dxc4 {[%emt 0:00:04]} Be7 {[%emt 0:00:13]} 9. Nd2 {[%emt 0:01:30]} O-O {[%emt 0:00:22]} 10. Nf1 {[%emt 0:00:02]} Nh7 {[%emt 0:09:52]} 11. Ng3 {[%emt 0:06:43]} Bg5 {[%emt 0:00:58]} 12. Qd3 {[%emt 0:00:26]} Bxc1 {[%emt 0:02:09]} 13. Raxc1 {[%emt 0:00:04]} Ng5 {[%emt 0:00:04]} 14. Rcd1 {[%emt 0:00:32]} Ne6 {[%emt 0:00:47]} 15. Nd5 {[%emt 1:22:23]} g6 {[%emt 1:17:43]} 16. Rf1 {[%emt 0:00:00]} Bd7 17. Qe3 {[%emt 0:00:00]} Qg5 18. Qxg5 hxg5 19. Nf6+ {[%emt 0:00:00]} Kg7 {[%emt 0:00:00]} 20. Nxd7 {[%emt 0:00:00]} Rfd8 {[%emt 0:00:00]} 21. Nxe5 {[%emt 0:00:00]} dxe5 {[%emt 0:00:00]} 22. f3 {[%emt 0:00:00]} Kf6 {[%emt 0:00:00]} 23. Rfe1 {[%emt 0:00:00]} Rxd1 {[%emt 0:00:00]} 24. Rxd1 {[%emt 0:00:00]} Rd8 {[%emt 0:00:00]} 25. Rxd8 {[%emt 0:00:00]} Nxd8 {[%emt 0:00:00]} 26. Nf1 {[%emt 0:00:00]} Ke6 {[%emt 0:00:00]} 27. Kf2 {[%emt 0:00:00]} Kd6 {[%emt 0:00:00]} 28. Ne3 {[%emt 0:00:00]} c6 {[%emt 0:00:00]} 29. Ke2 {[%emt 0:00:00]} f6 {[%emt 0:00:00]} 30. Kd2 {[%emt 0:00:00]} Ne6 {[%emt 0:00:00]} 31. c3 {[%emt 0:00:00]} Nc7 {[%emt 0:00:00]} 32. Ng4 {[%emt 0:00:00]} Ne8 {[%emt 0:00:00]} 33. Nf2 {[%emt 0:00:00]} Nc7 {[%emt 0:00:00]} 34. Nd3 {[%emt 0:00:00]} Ne6 {[%emt 0:00:00]} 35. g3 {[%emt 0:00:00]} Nc5 {[%emt 0:00:00]} 36. Nf2 {[%emt 0:00:00]} Ne6 {[%emt 0:01:10]} 37. Ng4 {[%emt 0:00:00]} Ke7 {[%emt 0:00:04]} 38. Kc2 {[%emt 0:00:00]} Nf8 {[%emt 0:00:08]} 39. c5 {[%emt 0:00:00]} Ne6 {[%emt 0:01:38]} 40. b4 {[%emt 0:00:00]} Nc7 {[%emt 0:00:00]} 41. Ne3 {[%emt 0:00:00]} Ne8 {[%emt 0:01:50]} 42. Nc4 {[%emt 0:00:00]} Kd7 {[%emt 0:00:06]} 43. Kd3 {[%emt 0:00:00]} Ng7 {[%emt 0:14:52]} 44. Nd6 {[%emt 0:00:00]} Kc7 {[%emt 0:01:50]} 45. a4 {[%emt 0:00:00]} a6 {[%emt 0:01:02]} 46. a5 {[%emt 0:00:33]} Nh5 {[%emt 0:01:34]} 47. Ke3 {[%emt 0:01:28]} Kb8 {[%emt 0:01:29]} 48. Kf2 {[%emt 0:05:27]} Kc7 {[%emt 0:00:04]} 49. Kf1 {[%emt 0:00:47]} Ng7 {[%emt 0:03:30]} 50. Kg2 {[%emt 0:00:45]} Nh5 {[%emt 0:03:49]} 51. Kh3 {[%emt 0:00:11]} Ng7 {[%emt 0:00:03]} 52. Kg4 {[%emt 0:00:11]} Nh5 {[%emt 0:00:30]} 53. Nf7 {[%emt 0:08:36]} Kd7 {[%emt 0:04:21]} 54. Nh8 {[%emt 0:10:51]} Ke8 {[%emt 0:05:13]} 55. Nxg6 {[%emt 0:00:30]} Ng7 {[%emt 0:00:04]} 56. h4 {[%emt 0:00:09]} Kf7 {[%emt 0:00:28]} 57. h5 {[%emt 0:00:13]} Ne6 {[%emt 0:02:19]} 58. f4 {[%emt 0:00:08]} exf4 {[%emt 0:00:51]} 59. gxf4 {[%emt 0:00:06]} gxf4 {[%emt 0:00:21]} 60. Nxf4 {[%emt 0:00:11]} Nf8 {[%emt 0:00:14]} 61. e5 {[%emt 0:02:39]} Nh7 {[%emt 0:02:18]} 62. e6+ {[%emt 0:00:15]} Ke7 {[%emt 0:00:05]} 63. Kf5 {[%emt 0:00:11]} Ng5 {[%emt 0:00:25]} 64. h6 {[%emt 0:00:28]} 1-0

[Event "European Womens-ch 2025"]
[Site "Rhodes"]
[Date "2025.04.08"]
[Round "8.34"]
[White "Dicen, Elis Denele"]
[Black "Antolak, Julia"]
[Result "0-1"]
[Annotator "RC"]
[ECO "A49"]
[WhiteElo "2129"]
[BlackElo "2314"]
[PlyCount "100"]
[EventDate "2025.03.29"]
[EventType "swiss"]
[EventCountry "GRE"]
[SourceTitle "playchess.com"]
[Source "ChessBase"]
[SourceQuality "1"]
[TimeControl "40/5400+30:1800+30"]

1. d4 {[%emt 0:00:03]} Nf6 {[%emt 0:00:41]} 2. c4 {[%emt 0:00:07]} g6 {[%emt 0:00:06]} 3. g3 {[%emt 0:00:06]} c5 {[%emt 0:00:08]} 4. dxc5 {[%emt 0:00:43]} Na6 {[%emt 0:00:15]} 5. Bg2 {[%emt 0:01:10]} Bg7 {[%emt 0:00:09]} 6. Nc3 {[%emt 0:02:00]} O-O {[%emt 0:00:40]} 7. Nf3 {[%emt 0:03:56]} Nxc5 {[%emt 0:00:28]} 8. O-O {[%emt 0:02:01]} d6 {[%emt 0:01:00]} 9. Be3 {[%emt 0:06:00]} Bd7 {[%emt 0:07:23]} 10. Rc1 {[%emt 0:05:34]} Bc6 {[%emt 0:03:25]} 11. b4 {[%emt 0:06:22]} Nce4 {[%emt 0:04:24]} 12. Nxe4 {[%emt 0:12:26]} Bxe4 {[%emt 0:00:17]} 13. Qb3 {[%emt 0:01:09]} a5 {[%emt 0:07:18]} 14. b5 {[%emt 0:05:30]} Nd7 {[%emt 0:04:48]} 15. Rfd1 {[%emt 0:04:48]} Qc7 {[%emt 0:04:24]} 16. Nd2 {[%emt 0:10:21]} Bxg2 {[%emt 0:03:38]} 17. Kxg2 {[%emt 0:00:08]} b6 {[%emt 0:03:13]} 18. h4 {[%emt 0:06:58]} h6 {[%emt 0:02:26]} 19. Nf3 {[%emt 0:01:35]} Nc5 {[%emt 0:04:12]} 20. Qc2 {[%emt 0:02:05]} f5 {[%emt 0:04:29]} 21. Qd2 {[%emt 0:07:25]} Kh7 {[%emt 0:02:27]} 22. Bd4 {[%emt 0:02:23]} Bxd4 {[%emt 0:09:41]} 23. Nxd4 {[%emt 0:02:40]} e5 {[%emt 0:02:49]} 24. Nc6 {[%emt 0:00:50]} Rf6 {[%emt 0:02:14]} 25. Qd5 {[%emt 0:02:30]} Re8 {[%emt 0:01:31]} 26. e3 {[%emt 0:01:26]} Qg7 {[%emt 0:03:03]} 27. Rh1 {[%emt 0:02:53]} Rfe6 {[%emt 0:08:39]} 28. Rce1 {[%emt 0:01:53]} Qf6 {[%emt 0:01:47]} 29. Qf3 {[%emt 0:01:54]} Rf8 {[%emt 0:02:14]} 30. Rd1 {[%emt 0:01:59]} Ne4 {[%emt 0:02:19]} 31. Rc1 {[%emt 0:02:18]} g5 {[%emt 0:02:53]} 32. hxg5 {[%emt 0:01:45]} Nxg5 {[%emt 0:00:06]} 33. Qe2 {[%emt 0:01:03]} f4 {[%emt 0:00:51]} 34. Qc2+ {[%emt 0:00:26]} Kg8 {[%emt 0:00:41]} 35. exf4 {[%emt 0:00:47]} exf4 {[%emt 0:00:06]} 36. Qc3 {[%emt 0:00:48]} f3+ {[%emt 0:04:04]} 37. Kg1 {[%emt 0:00:41]} Qg6 {[%emt 0:03:36]} 38. Qd2 {[%emt 0:00:52]} Ne4 {[%emt 0:01:27]} 39. Qd5 {[%emt 0:00:31]} Kh7 {[%emt 0:01:05]} 40. Rh3 {[%emt 0:00:00]} Rf5 {[%emt 0:00:00]} 41. Qd3 {[%emt 0:07:16]} Qg4 {[%emt 0:05:37]} 42. Rh4 {[%emt 0:05:48]} Qg5 {[%emt 0:01:06]} 43. Rxe4 {[%emt 0:08:36]} Qxc1+ {[%emt 0:01:06]} 44. Kh2 {[%emt 0:00:10]} Kh8 {[%emt 0:05:21]} 45. Qd4+ {[%emt 0:08:40]} Ref6 {[%emt 0:00:31]} 46. Re8+ {[%emt 0:01:09]} Kg7 {[%emt 0:00:40]} 47. Qg4+ {[%emt 0:01:19]} Qg5 {[%emt 0:00:24]} 48. Qe4 {[%emt 0:01:27]} Qh5+ {[%emt 0:02:27]} 49. Kg1 {[%emt 0:00:08]} Qh3 {[%emt 0:00:29]} 50. Re7+ {[%emt 0:01:13]} Kg6 {[%emt 0:00:24]} 0-1

[Event "European Womens-ch 2025"]
[Site "Rhodes"]
[Date "2025.04.08"]
[Round "8.35"]
[White "Mkrtchyan, Mariam"]
[Black "Nadzamova, Viktoria"]
[Result "1-0"]
[Annotator "RC"]
[ECO "E17"]
[WhiteElo "2282"]
[BlackElo "2122"]
[PlyCount "87"]
[EventDate "2025.03.29"]
[EventType "swiss"]
[EventCountry "GRE"]
[SourceTitle "playchess.com"]
[Source "ChessBase"]
[SourceQuality "1"]
[TimeControl "40/5400+30:1800+30"]

1. d4 {[%emt 0:00:04]} Nf6 {[%emt 0:00:20]} 2. c4 {[%emt 0:00:14]} e6 {[%emt 0:00:11]} 3. Nf3 {[%emt 0:00:07]} b6 {[%emt 0:00:27]} 4. g3 {[%emt 0:00:13]} Bb7 {[%emt 0:00:28]} 5. Bg2 {[%emt 0:00:06]} Be7 {[%emt 0:00:40]} 6. Nc3 {[%emt 0:00:37]} Ne4 {[%emt 0:03:55]} 7. Bd2 {[%emt 0:01:07]} O-O {[%emt 0:03:18]} 8. d5 {[%emt 0:01:15]} Nxd2 {[%emt 0:04:05]} 9. Qxd2 {[%emt 0:01:20]} d6 {[%emt 0:07:48]} 10. dxe6 {[%emt 0:08:59]} fxe6 {[%emt 0:00:24]} 11. Qe3 {[%emt 0:03:07]} e5 {[%emt 0:02:24]} 12. O-O {[%emt 0:02:49]} Bf6 {[%emt 0:13:29]} 13. Nd5 {[%emt 0:08:33]} Nd7 {[%emt 0:04:49]} 14. Rad1 {[%emt 0:04:34]} Rb8 {[%emt 0:02:47]} 15. b4 {[%emt 0:02:47]} Re8 {[%emt 0:04:39]} 16. Nd2 {[%emt 0:03:46]} Bg5 {[%emt 0:04:24]} 17. Qd3 {[%emt 0:02:05]} Bxd2 {[%emt 0:02:04]} 18. Rxd2 {[%emt 0:00:10]} Kh8 {[%emt 0:00:35]} 19. Kh1 {[%emt 0:09:34]} Nf6 {[%emt 0:05:33]} 20. e4 {[%emt 0:00:05]} Bc8 {[%emt 0:03:58]} 21. f4 {[%emt 0:02:15]} exf4 {[%emt 0:02:37]} 22. gxf4 {[%emt 0:00:50]} Be6 {[%emt 0:03:10]} 23. Re2 {[%emt 0:06:10]} Bg4 {[%emt 0:06:51]} 24. Re3 {[%emt 0:01:57]} c6 {[%emt 0:01:58]} 25. Nxf6 {[%emt 0:03:58]} Qxf6 {[%emt 0:00:32]} 26. e5 {[%emt 0:00:43]} dxe5 {[%emt 0:00:28]} 27. fxe5 {[%emt 0:00:06]} Qe6 {[%emt 0:00:24]} 28. Qe4 {[%emt 0:02:56]} Rf8 {[%emt 0:01:03]} 29. Rxf8+ {[%emt 0:03:24]} Rxf8 {[%emt 0:00:01]} 30. h3 {[%emt 0:00:12]} Qh6 {[%emt 0:02:58]} 31. e6 {[%emt 0:02:36]} Bh5 {[%emt 0:00:39]} 32. e7 {[%emt 0:01:05]} Re8 {[%emt 0:00:17]} 33. b5 {[%emt 0:13:38]} cxb5 {[%emt 0:02:13]} 34. cxb5 {[%emt 0:01:29]} Bf7 {[%emt 0:12:12]} 35. Qe5 {[%emt 0:01:18]} Qg6 {[%emt 0:00:38]} 36. Bc6 {[%emt 0:01:36]} Qb1+ {[%emt 0:00:29]} 37. Kh2 {[%emt 0:00:37]} Qf1 {[%emt 0:02:20]} 38. Rf3 {[%emt 0:02:27]} Qc4 {[%emt 0:01:38]} 39. Bxe8 {[%emt 0:01:47]} Qc2+ {[%emt 0:00:17]} 40. Kg1 {[%emt 0:00:00]} Qb1+ {[%emt 0:00:00]} 41. Rf1 {[%emt 0:02:36]} Qg6+ {[%emt 0:00:54]} 42. Kh1 {[%emt 0:00:12]} Qd3 {[%emt 0:02:19]} 43. Rxf7 {[%emt 0:01:57]} Qd1+ {[%emt 0:00:14]} 44. Kg2 {[%emt 0:00:14]} 1-0